fUSD/lending_fUSD_20251217
["ID","MTS","AMOUNT","RATE_DAILY","PERIOD"]
[398903317,1765984243106,-5679.0,0.000172,2]
[398903319,1765984243115,-431.0,0.00017206,2]
[398903321,1765984243124,-500.0,0.00017206,2]
[398903323,1765984243133,-500.0,0.00017206,2]
[398903324,1765984243142,-500.0,0.00017206,2]
[398903325,1765984243152,-453.0,0.00017206,2]
[398903326,1765984243161,-2112.0,0.00017213,2]
[398903327,1765984243170,-574.12855637,0.00017213,2]
[398903328,1765984243179,-500.0,0.0001726,3]
[398903329,1765984243188,-239.64,0.00017275,2]
[398903330,1765984243198,-500.0,0.00017318,2]
[398903331,1765984243208,-431.0,0.00017343,2]
[398903332,1765984243219,-500.0,0.00017343,2]
[398903333,1765984243230,-500.0,0.00017343,2]
[398903334,1765984243241,-500.0,0.00017343,2]
[398903335,1765984243250,-453.0,0.00017343,2]
[398903336,1765984243259,-500.0,0.00017389,2]
[398903337,1765984243269,-150.0,0.00017389,2]
[398903338,1765984243278,-150.0,0.00017389,2]
[398903339,1765984243287,-150.0,0.00017389,2]
[398903340,1765984243297,-150.0,0.00017389,2]
[398903341,1765984243307,-150.0,0.00017389,2]
[398903342,1765984243316,-150.0,0.00017389,2]
[398903343,1765984243326,-150.0,0.00017389,2]
[398903344,1765984243335,-150.0,0.00017389,2]
[398903345,1765984243344,-150.0,0.00017389,2]
[398903346,1765984243354,-150.0,0.00017389,2]
[398903347,1765984243363,-150.0,0.00017389,2]
[398903348,1765984243372,-1607.0,0.00017389,2]
[398903349,1765984243381,-3453.0,0.00017389,2]
[398903350,1765984243391,-1325.0,0.00017389,2]
[398903351,1765984243400,-612.0,0.00017389,2]
[398903352,1765984243410,-713.522,0.00017389,2]
[398903353,1765984243419,-1261.0,0.00017389,2]
[398903354,1765984243429,-1197.0,0.00017389,2]
[398903355,1765984243438,-911.0,0.00017389,2]
[398903356,1765984243448,-658.77,0.00017427,2]
[398903357,1765984243458,-658.77,0.00017427,2]
[398903358,1765984243467,-151.0,0.00017431,2]
[398903359,1765984243476,-10000.0,0.00017434,2]
[398903360,1765984243487,-151.12198165,0.00017448,2]
[398903361,1765984243497,-431.0,0.0001748,2]
[398903362,1765984243506,-500.0,0.0001748,2]
[398903363,1765984243515,-419.02647921,0.0001748,2]
[398903364,1765984243524,-453.0,0.0001748,2]
[398903365,1765984243533,-267.46074303,0.00017486,2]
[398903366,1765984243542,-311.1,0.00017486,2]
[398903367,1765984243552,-308.4975971,0.00017486,2]
[398903368,1765984243561,-151.0,0.00017486,2]
[398903369,1765984243570,-2000.0,0.000175,2]
[398903370,1765984243580,-1000.0,0.00017521,2]
[398903371,1765984243589,-1000.0,0.00017521,2]
[398903372,1765984243598,-1000.0,0.00017521,2]
[398903373,1765984243607,-1000.0,0.00017521,2]
[398903374,1765984243616,-1000.0,0.00017521,2]
[398903375,1765984243625,-500.0,0.00017534,4]
[398903376,1765984243634,-11286.81654877,0.00017573,2]
[398903377,1765984243644,-279.34430893,0.00017581,7]
[398903378,1765984243654,-431.0,0.00017617,2]
[398903379,1765984243663,-500.0,0.00017617,2]
[398903380,1765984243672,-453.0,0.00017617,2]
[398903381,1765984243681,-866.0,0.00017626,2]
[398903382,1765984243690,-659.7,0.00017692,2]
[398903383,1765984243699,-543.83,0.00017694,2]
[398903384,1765984243708,-29204.14,0.00017728,2]
[398903385,1765984243717,-11178.49,0.00017728,2]
[398903386,1765984243727,-9999.99,0.00017728,2]
[398903387,1765984243737,-2127.31,0.00017728,2]
[398903388,1765984243746,-160.57893801,0.00017744,2]
[398903389,1765984243760,-431.0,0.00017754,2]
[398903390,1765984243769,-500.0,0.00017754,2]
[398903392,1765984243779,-453.0,0.00017754,2]
[398903394,1765984243788,-2112.0,0.00017761,2]
[398903395,1765984243797,-595.37131296,0.00017761,2]
[398903396,1765984243807,-500.0,0.00017808,5]
[398903397,1765984243815,-500.0,0.00017808,2]
[398903398,1765984243825,-200.0,0.00017856,2]
[398903399,1765984243834,-153.26,0.00017857,2]
[398903400,1765984243843,-431.0,0.00017891,2]
[398903401,1765984243853,-469.81530924,0.00017891,2]
[398903402,1765984243862,-453.0,0.00017891,2]
[398903403,1765984243871,-500.0,0.00017945,2]
[398903404,1765984243880,-151.12198165,0.00017947,2]
[398903405,1765984243889,-543.83,0.00017968,2]
[398903406,1765984243899,-160.25,0.00017975,2]
[398903407,1765984243908,-1336.07,0.00017992,2]
[398903408,1765984243918,-1336.07,0.00017999,2]
[398903409,1765984243927,-1336.07,0.00017999,2]
[398903410,1765984243936,-1336.07,0.00017999,2]
[398903411,1765984243945,-1336.07,0.00017999,2]
[398903412,1765984243955,-2000.0,0.00018,2]
[398903413,1765984243965,-3528.58960775,0.00018,2]
[398903414,1765984243974,-2000.0,0.0001801,2]
[398903415,1765984243985,-2000.0,0.0001802,2]
[398903416,1765984243994,-431.0,0.00018028,2]
[398903417,1765984244003,-453.0,0.00018028,2]
[398903418,1765984244013,-2280.954756,0.0001803,2]
[398903419,1765984244022,-160.25,0.00018065,2]
[398903420,1765984244031,-1500.0,0.00018068,2]
[398903422,1765984244041,-1500.0,0.00018068,2]
[398903423,1765984244050,-1126.97295087,0.00018068,2]
[398903425,1765984244059,-1241.18450961,0.00018068,2]
[398903427,1765984244068,-1500.0,0.00018068,2]
[398903429,1765984244078,-500.0,0.00018082,2]
[398903431,1765984244087,-500.0,0.00018082,6]
[398903433,1765984244096,-198.0,0.00018096,2]
[398903435,1765984244105,-153.2568092,0.00018104,2]
[398903437,1765984244114,-11286.81654877,0.00018116,2]
[398903439,1765984244123,-170.5,0.00018123,2]
[398903441,1765984244132,-239.64,0.00018139,2]
[398903443,1765984244141,-431.0,0.00018165,2]
[398903445,1765984244151,-453.0,0.00018165,2]
[398903446,1765984244160,-500.0,0.00018219,2]
[398903449,1765984244169,-600.0,0.0001824,2]
[398903451,1765984244178,-543.83,0.00018242,2]
[398903452,1765984244188,-320.5,0.00018244,2]
[398903454,1765984244197,-198.0,0.00018254,2]
[398903456,1765984244206,-198.0,0.00018283,2]
[398903458,1765984244215,-900.0,0.00018287,2]
[398903460,1765984244224,-431.0,0.00018302,2]
[398903462,1765984244235,-453.0,0.00018302,2]
[398903464,1765984244244,-2112.0,0.00018309,2]
[398903466,1765984244254,-617.40005154,0.00018309,2]
[398903468,1765984244263,-359.83741005,0.00018318,2]
[398903470,1765984244273,-200.0,0.00018319,2]
[398903472,1765984244282,-198.0,0.0001833,2]
[398903474,1765984244292,-359.7561186,0.00018356,2]
[398903476,1765984244301,-500.0,0.00018356,7]
[398903478,1765984244310,-40438.37,0.00018356,2]
[398903480,1765984244320,-198.0,0.00018363,2]
[398903482,1765984244329,-198.0,0.00018372,2]
[398903484,1765984244338,-198.0,0.0001839,2]
[398903486,1765984244348,-960.38,0.00018406,2]
[398903488,1765984244357,-1407.34,0.00018406,2]
[398903490,1765984244366,-153.26,0.00018431,2]
[398903492,1765984244375,-444.44474318,0.00018439,2]
[398903494,1765984244385,-453.0,0.00018439,2]
[398903496,1765984244394,-151.12198165,0.00018445,2]
[398903498,1765984244403,-159.92,0.00018463,2]
[398903500,1765984244413,-153.26,0.00018471,2]
[398903502,1765984244421,-543.83,0.00018516,2]
[398903504,1765984244430,-1336.07,0.00018533,2]
[398903506,1765984244440,-198.0,0.00018542,2]
[398903508,1765984244450,-460.64616008,0.00018576,2]
[398903510,1765984244459,-152.0,0.0001861,3]
[398903512,1765984244468,-2000.0,0.00018616,2]
[398903514,1765984244477,-184.93187764,0.00018616,2]
[398903516,1765984244488,-2000.0,0.00018616,2]
[398903518,1765984244497,-2576.59583354,0.0001862,2]
[398903520,1765984244506,-198.0,0.00018627,2]
[398903522,1765984244515,-500.0,0.0001863,8]
[398903524,1765984244524,-11286.81654877,0.00018659,2]
[398903526,1765984244534,-514.46111751,0.00018673,2]
[398903528,1765984244544,-500.0,0.00018732,2]
[398903530,1765984244553,-440.75031,0.00018734,2]
[398903532,1765984244562,-198.0,0.00018764,2]
[398903534,1765984244572,-500.0,0.00018773,2]
[398903536,1765984244582,-150.0,0.00018773,2]
[398903538,1765984244591,-500.0,0.00018773,2]
[398903540,1765984244600,-500.0,0.00018773,2]
[398903542,1765984244609,-500.0,0.00018773,2]
[398903544,1765984244619,-162.15907528,0.00018773,2]
[398903546,1765984244628,-500.0,0.00018773,2]
[398903548,1765984244637,-500.0,0.00018773,2]
[398903550,1765984244646,-569.87602686,0.00018773,2]
[398903552,1765984244655,-500.0,0.00018773,2]
[398903554,1765984244665,-500.0,0.00018773,2]
[398903556,1765984244674,-500.0,0.00018773,2]
[398903558,1765984244683,-500.0,0.00018773,2]
[398903560,1765984244692,-162.27451964,0.00018773,2]
[398903562,1765984244701,-500.0,0.00018773,2]
[398903564,1765984244710,-500.0,0.00018773,2]
[398903566,1765984244719,-500.0,0.00018773,2]
[398903568,1765984244730,-500.0,0.00018773,2]
[398903570,1765984244741,-500.0,0.00018773,2]
[398903572,1765984244756,-500.0,0.00018773,2]
[398903574,1765984244765,-500.0,0.00018773,2]
[398903576,1765984244775,-500.0,0.00018773,2]
[398903578,1765984244784,-500.0,0.00018773,2]
[398903580,1765984244794,-500.0,0.00018773,2]
[398903582,1765984244802,-500.0,0.00018773,2]
[398903584,1765984244811,-178.93750453,0.00018773,2]
[398903586,1765984244821,-500.0,0.00018773,2]
[398903588,1765984244830,-500.0,0.00018773,2]
[398903590,1765984244839,-500.0,0.00018773,2]
[398903592,1765984244848,-500.0,0.00018773,2]
[398903594,1765984244856,-500.0,0.00018773,2]
[398903596,1765984244865,-500.0,0.00018773,2]
[398903598,1765984244875,-500.0,0.00018773,2]
[398903600,1765984244883,-500.0,0.00018773,2]
[398903602,1765984244892,-500.0,0.00018773,2]
[398903604,1765984244902,-500.0,0.00018773,2]
[398903606,1765984244911,-500.0,0.00018773,2]
[398903608,1765984244919,-500.0,0.00018773,2]
[398903610,1765984244928,-500.0,0.00018773,2]
[398903612,1765984244938,-500.0,0.00018773,2]
[398903614,1765984244947,-500.0,0.00018773,2]
[398903616,1765984244956,-500.0,0.00018773,2]
[398903618,1765984244965,-500.0,0.00018773,2]
[398903620,1765984244975,-500.0,0.00018773,2]
[398903622,1765984244986,-500.0,0.00018773,2]
[398903624,1765984244995,-516.08920416,0.00018773,2]
[398903626,1765984245005,-500.0,0.00018773,2]
[398903628,1765984245014,-500.0,0.00018773,2]
[398903630,1765984245023,-500.0,0.00018773,2]
[398903632,1765984245032,-576.83817064,0.00018773,2]
[398903634,1765984245041,-500.0,0.00018773,2]
[398903636,1765984245050,-500.0,0.00018773,2]
[398903638,1765984245060,-500.0,0.00018773,2]
[398903640,1765984245069,-500.0,0.00018773,2]
[398903642,1765984245078,-500.0,0.00018773,2]
[398903644,1765984245087,-600.0,0.00018788,2]
[398903646,1765984245096,-543.83,0.0001879,2]
[398903648,1765984245104,-150.91,0.000188,2]
[398903650,1765984245113,-204.63597997,0.00018809,2]
[398903652,1765984245122,-240.20808911,0.00018844,2]
[398903654,1765984245131,-376.36040712,0.00018855,2]
[398903656,1765984245141,-322.6107,0.00018855,2]
[398903658,1765984245151,-2112.0,0.00018857,2]
[398903660,1765984245160,-640.24385345,0.00018857,2]
[398903662,1765984245170,-198.0,0.00018884,2]
[398903664,1765984245179,-150.0,0.00018888,2]
[398903666,1765984245188,-150.0,0.00018888,2]
[398903668,1765984245197,-150.0,0.00018888,2]
[398903670,1765984245206,-150.0,0.00018888,2]
[398903672,1765984245215,-150.0,0.00018888,2]
[398903673,1765984245224,-150.0,0.00018888,2]
[398903674,1765984245233,-150.0,0.00018888,2]
[398903675,1765984245245,-150.0,0.00018888,2]
[398903676,1765984245255,-198.0,0.00018892,2]
[398903677,1765984245264,-426.45410676,0.000189,2]
[398903678,1765984245274,-2094.87368375,0.000189,2]
[398903679,1765984245283,-500.0,0.00018904,9]
[398903680,1765984245293,-3457.53642493,0.00018904,2]
[398903681,1765984245302,-555.77,0.00018908,2]
[398903682,1765984245311,-187.0,0.00018941,2]
[398903684,1765984245320,-152.0,0.00018943,4]
[398903686,1765984245329,-151.12198165,0.00018944,2]
[398903688,1765984245338,-150.0,0.00018973,2]
[398903690,1765984245348,-163.30713897,0.00018973,2]
[398903693,1765984245357,-160.57893801,0.0001899,2]
[398903695,1765984245366,-500.0,0.00018993,2]
[398903697,1765984245375,-500.0,0.00018993,2]
[398903699,1765984245385,-500.0,0.00018993,2]
[398903701,1765984245394,-2609.9423255,0.00018994,2]
[398903703,1765984245403,-265.7573762,0.00018994,2]
[398903705,1765984245412,-157242.9935687,0.00018994,2]
[398903707,1765984245421,-2609.9423255,0.00018994,2]
[398903709,1765984245430,-42123.0164401,0.00018994,2]
[398903711,1765984245439,-151.0,0.00018997,2]
[398903713,1765984245448,-150.0,0.00018999,2]
[398903715,1765984245458,-1336.07,0.00018999,2]
[398903717,1765984245467,-1336.07,0.00018999,2]
[398903719,1765984245476,-1336.07,0.00018999,2]
[398903721,1765984245486,-1336.07,0.00018999,2]
[398903723,1765984245495,-1336.07,0.00018999,2]
[398903725,1765984245504,-1336.07,0.00018999,2]
[398903727,1765984245514,-1336.07,0.00018999,2]
[398903729,1765984245523,-1336.07,0.00018999,2]
[398903759,1765984245781,-1336.07,0.00018999,2]
[398903762,1765984245819,-1336.07319516,0.00018999,2]
[398903764,1765984245828,-499.99999999,0.00018999,2]
[398903766,1765984245839,-500.0,0.00018999,2]
[398903768,1765984245848,-500.0,0.00018999,2]
[398903770,1765984245858,-500.0,0.00018999,2]
[398903772,1765984245867,-500.0,0.00018999,2]
[398903774,1765984245876,-500.0,0.00018999,2]
[398903776,1765984245886,-500.0,0.00018999,2]
[398903778,1765984245895,-500.0,0.00018999,2]
[398903780,1765984245905,-500.0,0.00018999,2]
[398903783,1765984245915,-500.0,0.00018999,2]
[398903785,1765984245924,-500.0,0.00018999,2]
[398903787,1765984245933,-500.0,0.00018999,2]
[398903789,1765984245943,-500.0,0.00018999,2]
[398903791,1765984245953,-500.0,0.00018999,2]
[398903793,1765984245962,-500.0,0.00018999,2]
[398903795,1765984245972,-500.0,0.00018999,2]
[398903797,1765984245981,-299.31144329,0.00018999,2]
[398903799,1765984245992,-200.77285261,0.00018999,2]
[398903801,1765984246001,-688.94394477,0.00018999,2]
[398903804,1765984246010,-359727.69986581,0.00019,2]
[398903807,1765984246020,-2088831.87605865,0.00019,2]
[398903810,1765984246030,-230589.27545674,0.00019,2]
[398903812,1765984246039,-5145.7748281,0.00019,2]
[398903814,1765984246048,-150.0,0.00019,2]
[398903816,1765984246058,-3754.98343141,0.00019,2]
[398903818,1765984246067,-150.0,0.00019,2]
[398903820,1765984246076,-2881.00779891,0.00019,2]
[398903822,1765984246085,-150.0,0.00019,2]
[398903824,1765984246094,-6293.67714117,0.00019,2]
[398903826,1765984246104,-150.0,0.00019,2]
[398903828,1765984246114,-548.229915,0.00019,2]
[398903830,1765984246123,-157.63541269,0.00019,2]
[398903832,1765984246132,-132242.22261764,0.00019,2]
[398903834,1765984246142,-941.91499007,0.00019,2]
[398903836,1765984246150,-300.0,0.00019,2]
[398903838,1765984246160,-2832.444,0.00019,2]
[398903840,1765984246169,-153.0,0.00019,2]
[398903842,1765984246179,-153.0,0.00019,2]
[398903844,1765984246188,-153.0,0.00019,2]
[398903846,1765984246197,-219.98192122,0.00019,2]
[398903848,1765984246206,-151.0,0.00019,2]
[398903851,1765984246215,-151.0,0.00019,2]
[398903853,1765984246224,-151.0,0.00019,2]
[398903855,1765984246233,-151.0,0.00019,2]
[398903856,1765984246243,-151.0,0.00019,2]
[398903859,1765984246252,-151.0,0.00019,2]
[398903861,1765984246262,-151.0,0.00019,2]
[398903863,1765984246271,-151.0,0.00019,2]
[398903865,1765984246281,-151.0,0.00019,2]
[398903867,1765984246290,-249.916202,0.00019,2]
[398903869,1765984246300,-174.253682,0.00019,2]
[398903872,1765984246309,-174.253682,0.00019,2]
[398903874,1765984246319,-174.253682,0.00019,2]
[398903877,1765984246328,-174.253682,0.00019,2]
[398903879,1765984246337,-151.0,0.00019,2]
[398903881,1765984246347,-151.0,0.00019,2]
[398903883,1765984246355,-151.0,0.00019,2]
[398903885,1765984246365,-151.0,0.00019,2]
[398903887,1765984246375,-151.0,0.00019,2]
[398903889,1765984246385,-151.0,0.00019,2]
[398903891,1765984246395,-1028.796728,0.00019,2]
[398903893,1765984246405,-1028.796728,0.00019,2]
[398903895,1765984246414,-1028.796728,0.00019,2]
[398903897,1765984246423,-1028.796728,0.00019,2]
[398903899,1765984246434,-1028.796728,0.00019,2]
[398903901,1765984246443,-1028.796728,0.00019,2]
[398903903,1765984246453,-1028.796728,0.00019,2]
[398903905,1765984246463,-1028.796728,0.00019,2]
[398903907,1765984246473,-151.0,0.00019,2]
[398903909,1765984246482,-151.0,0.00019,2]
[398903911,1765984246495,-159.75072177,0.00019,2]
[398903913,1765984246504,-163.48661169,0.00019,2]
[398903915,1765984246513,-151.0,0.00019,2]
[398903917,1765984246522,-151.0,0.00019,2]
[398903919,1765984246531,-151.0,0.00019,2]
[398903921,1765984246541,-1045.0,0.00019,2]
[398903924,1765984246550,-151.0,0.00019,2]
[398903925,1765984246560,-342.372073,0.00019,2]
[398903927,1765984246570,-342.372073,0.00019,2]
[398903929,1765984246580,-342.372073,0.00019,2]
[398903931,1765984246589,-342.372073,0.00019,2]
[398903933,1765984246598,-200.0,0.00019,2]
[398903935,1765984246607,-151.0,0.00019,2]
[398903936,1765984246616,-371.685034,0.00019,2]
[398903938,1765984246626,-371.685034,0.00019,2]
[398903940,1765984246636,-371.685034,0.00019,2]
[398903942,1765984246645,-153.0,0.00019,2]
[398903944,1765984246655,-371.685034,0.00019,2]
[398903946,1765984246664,-151.0,0.00019,2]
[398903948,1765984246673,-151.0,0.00019,2]
[398903950,1765984246683,-151.0,0.00019,2]
[398903951,1765984246692,-151.0,0.00019,2]
[398903953,1765984246701,-213.11935721,0.00019002,2]
[398903955,1765984246710,-239.64,0.00019003,2]
[398903957,1765984246719,-999.9999,0.00019007,2]
[398903959,1765984246729,-500.0,0.00019066,2]
[398903961,1765984246739,-500.0,0.00019067,2]
[398903963,1765984246749,-784.8449496,0.00019076,2]
[398903964,1765984246763,-150.0,0.0001915,2]
[398903966,1765984246772,-500.0,0.00019157,3]
[398903968,1765984246782,-2109.73837565,0.00019164,2]
[398903970,1765984246793,-2500.0,0.00019164,2]
[398903972,1765984246805,-198.0,0.00019176,2]
[398903974,1765984246814,-500.0,0.00019178,10]
[398903976,1765984246824,-151.0,0.00019178,2]
[398903978,1765984246834,-1000.0,0.00019178,2]
[398903979,1765984246844,-20048.0,0.00019178,2]
[398903981,1765984246853,-900.0,0.00019178,2]
[398903983,1765984246862,-150.0,0.00019178,2]
[398903985,1765984246873,-555.77,0.00019182,2]
[398903987,1765984246883,-11286.81654877,0.00019203,2]
[398903989,1765984246892,-151.0,0.00019214,2]
[398903991,1765984246901,-1000.0,0.00019217,2]
[398903993,1765984246910,-198.0,0.00019253,2]
[398903994,1765984246920,-152.0,0.00019276,5]
[398903996,1765984246930,-198.0,0.00019283,2]
[398903998,1765984246941,-1000.0,0.00019321,2]
[398903999,1765984246950,-162.96288019,0.00019321,2]
[398904001,1765984246960,-1000.0,0.00019321,2]
[398904002,1765984246970,-1000.0,0.00019321,2]
[398904004,1765984246979,-1000.0,0.00019321,2]
[398904005,1765984246990,-866.67059237,0.00019321,2]
[398904006,1765984247000,-1000.0,0.00019321,2]
[398904007,1765984247010,-1000.0,0.00019321,2]
[398904008,1765984247020,-1014.08730683,0.00019321,2]
[398904009,1765984247030,-1000.0,0.00019321,2]
[398904010,1765984247040,-1000.97583461,0.00019321,2]
[398904011,1765984247049,-1000.0,0.00019321,2]
[398904012,1765984247059,-1000.0,0.00019321,2]
[398904013,1765984247068,-340.19399092,0.00019321,2]
[398904015,1765984247077,-1000.0,0.00019321,2]
[398904016,1765984247086,-1000.0,0.00019321,2]
[398904017,1765984247095,-1000.0,0.00019321,2]
[398904018,1765984247104,-1000.0,0.00019321,2]
[398904019,1765984247114,-1000.0,0.00019321,2]
[398904020,1765984247123,-1000.0,0.00019321,2]
[398904021,1765984247132,-1000.0,0.00019321,2]
[398904022,1765984247141,-1000.0,0.00019321,2]
[398904023,1765984247151,-1000.0,0.00019321,2]
[398904024,1765984247160,-500.0,0.00019321,2]
[398904025,1765984247169,-1000.0,0.00019321,2]
[398904026,1765984247179,-1000.0,0.00019321,2]
[398904027,1765984247189,-1000.0,0.00019321,2]
[398904028,1765984247199,-1117.07719374,0.00019321,2]
[398904029,1765984247208,-498.08794248,0.00019321,2]
[398904030,1765984247218,-565.78797354,0.00019321,2]
[398904031,1765984247227,-1000.0,0.00019321,2]
[398904032,1765984247238,-1000.0,0.00019321,2]
[398904033,1765984247247,-1000.0,0.00019321,2]
[398904034,1765984247257,-1000.0,0.00019321,2]
[398904035,1765984247267,-1000.0,0.00019321,2]
[398904036,1765984247278,-504.05376644,0.00019321,2]
[398904037,1765984247287,-1000.0,0.00019321,2]
[398904038,1765984247297,-1000.0,0.00019321,2]
[398904039,1765984247306,-500.0,0.00019321,2]
[398904040,1765984247316,-754.07074293,0.00019321,2]
[398904041,1765984247326,-600.0,0.00019336,2]
[398904042,1765984247336,-480.88,0.00019365,2]
[398904043,1765984247347,-500.0,0.00019399,2]
[398904044,1765984247357,-663.93287602,0.00019405,2]
[398904045,1765984247366,-150.0,0.00019412,4]
[398904046,1765984247375,-150.0,0.00019412,4]
[398904047,1765984247385,-150.0,0.00019412,4]
[398904048,1765984247394,-1000.0,0.00019435,2]
[398904049,1765984247404,-1000.0,0.00019438,2]
[398904050,1765984247413,-151.12198165,0.00019442,2]
[398904051,1765984247422,-500.0,0.00019452,11]
[398904052,1765984247432,-198.0,0.00019483,2]
[398904053,1765984247441,-198.0,0.00019503,2]
[398904054,1765984247450,-209.36442742,0.00019521,2]
[398904055,1765984247460,-150.0,0.00019587,4]
[398904056,1765984247469,-198.0,0.00019601,2]
[398904057,1765984247478,-152.0,0.00019608,6]
[398904058,1765984247491,-198.0,0.00019633,2]
[398904059,1765984247500,-198.0,0.00019635,2]
[398904060,1765984247510,-150.0,0.00019675,4]
[398904061,1765984247520,-2355.42174113,0.00019712,2]
[398904062,1765984247530,-500.0,0.00019726,12]
[398904063,1765984247539,-614.59997477,0.00019726,2]
[398904064,1765984247549,-207.1615088,0.00019726,2]
[398904065,1765984247558,-306.00436977,0.00019726,2]
[398904066,1765984247568,-164.6104885,0.00019735,2]
[398904067,1765984247578,-11286.81654877,0.00019746,2]
[398904068,1765984247587,-198.0,0.00019752,2]
[398904069,1765984247597,-198.0,0.00019773,2]
[398904070,1765984247606,-1306.0,0.00019776,2]
[398904071,1765984247615,-1157.61439671,0.00019776,2]
[398904072,1765984248797,-357.57657798,0.00019776,2]
[398904073,1765984248814,-911.80902531,0.00019776,2]
[398904074,1765984248828,-4799.0,0.00019776,2]
[398904075,1765984248838,-563.0,0.00019776,2]
[398904076,1765984248848,-198.0,0.00019779,2]
[398904077,1765984248858,-198.0,0.00019798,2]
[398904078,1765984248868,-198.0,0.00019851,2]
[398904079,1765984248878,-239.64,0.00019866,2]
[398904080,1765984248890,-1500.0,0.00019868,2]
[398904081,1765984248900,-1352.08021164,0.00019868,2]
[398904082,1765984248911,-908.49128466,0.00019868,2]
[398904083,1765984248921,-1146.74113398,0.00019868,2]
[398904084,1765984248930,-1180.17359504,0.00019868,2]
[398904085,1765984249052,-500.0,0.0001748,2]
[398904086,1765984249062,-319.82640496,0.00019868,2]
[398904087,1765984249073,-1500.0,0.00019868,2]
[398904088,1765984249085,-276.78624185,0.00019868,2]
[398904089,1765984249099,-316.82511098,0.00019868,2]
[398904090,1765984249110,-573.25919939,0.00019868,2]
[398904091,1765984249120,-737.23567797,0.00019868,2]
[398904092,1765984249133,-762.76432203,0.00019868,2]
[398904093,1765984249143,-219.44987006,0.00019868,2]
[398904094,1765984249153,-1199.41930675,0.00019868,2]
[398904095,1765984249177,-301.88757574,0.00019868,2]
[398904096,1765984249187,-1500.0,0.00019868,2]
[398904097,1765984249196,-1500.0,0.00019868,2]
[398904098,1765984249206,-1500.0,0.00019868,2]
[398904099,1765984249216,-492.5127718,0.00019868,2]
[398904100,1765984249225,-336.02505012,0.00019868,2]
[398904101,1765984249235,-1500.0,0.00019868,2]
[398904102,1765984249245,-322.88830232,0.00019868,2]
[398904103,1765984249257,-1177.11169768,0.00019868,2]
[398904104,1765984249268,-922.40829992,0.00019868,2]
[398904105,1765984249291,-183.59203346,0.000189,2]
[398904106,1765984249301,-577.59170008,0.00019868,2]
[398904107,1765984249311,-1500.0,0.00019868,2]
[398904108,1765984249321,-243.55453885,0.00019868,2]
[398904109,1765984249334,-632.7111078,0.00019868,2]
[398904110,1765984249346,-362.61927219,0.00019868,2]
[398904111,1765984249358,-261.11508116,0.00019868,2]
[398904112,1765984249368,-1437.08719503,0.00019868,2]
[398904113,1765984249378,-863.92373487,0.00019868,2]
[398904114,1765984249389,-1500.0,0.00019868,2]
[398904115,1765984249399,-1500.0,0.00019868,2]
[398904116,1765984249409,-1500.0,0.00019868,2]
[398904117,1765984249418,-1500.0,0.00019868,2]
[398904118,1765984249429,-600.0,0.00019884,2]
[398904119,1765984249439,-135.82987756,0.00019937,4]
[398904120,1765984249451,-14.17012244,0.00019937,4]
[398904121,1765984249461,-150.0,0.00019937,4]
[398904122,1765984249471,-150.0,0.00019937,4]
[398904123,1765984249482,-150.0,0.00019937,4]